[Event "European Amateur-ch U2000 2019"]
[Site "Rhodes"]
[Date "2019.04.11"]
[Round "6.7"]
[White "Mohnblatt, Daniel"]
[Black "Zakharov, Denis"]
[Result "0-1"]
[ECO "A41"]
[WhiteElo "1708"]
[BlackElo "1889"]
[Annotator "NA"]
[PlyCount "108"]
[EventDate "2019.04.06"]
[EventType "swiss"]
[EventCountry "GRE"]
[SourceTitle "playchess.com"]
[Source "ChessBase"]
[SourceQuality "1"]
[TimeControl "40/5400+30:1800+30"]

1. d4 {[%emt 0:00:00]} d6 {[%emt 0:00:00]} 2. c4 {[%emt 0:00:00]} e5 {[%emt 0:00:31]} 3. dxe5 {[%emt 0:01:13]} dxe5 {[%emt 0:00:01]} 4. Qxd8+ Kxd8 {[%emt 0:00:01]} 5. e4 {[%emt 0:00:31]} c6 {[%emt 0:00:45]} 6. Nf3 {[%emt 0:00:14]} f6 {[%emt 0:00:08]} 7. Nc3 {[%emt 0:01:25]} Be6 {[%emt 0:01:42]} 8. a3 {[%emt 0:00:28] A41: 1 d4 d6: Tartakower System and Modern Defence} (8. Be3 Nd7 9. Be2 Ne7 10. O-O-O Nc8 11. Na4 Kc7 12. Nd2 Ncb6 13. Nxb6 axb6 14. a3 Bc5 15. Kc2 Rhd8 16. Nb1 {0-1 (44) Crisan,A (2635)-Macieja,B (2588) Portoroz 2001}) 8... a5 {[%emt 0:00:14]} 9. Be3 {[%emt 0:00:14]} Kc7 {[%emt 0:00:36]} 10. Rc1 {[%emt 0:00:15]} a4 {[%emt 0:00:39]} 11. Be2 {[%emt 0:01:25]} (11. Nd5+ $1 $16 Bxd5 12. cxd5) 11... Nd7 {[%emt 0:00:37]} 12. O-O {[%emt 0:00:32]} Bc5 $146 {[%emt 0:01:11]} ({Predecessor:} 12... b6 13. Rfd1 Bc5 14. Bxc5 Nxc5 {½-½ (44) Janos,J-Ivanov,V (2450) Martin 1996}) 13. Nd5+ {[%emt 0:01:50]} Kb8 {[%emt 0:03:29]} 14. Bxc5 {[%emt 0:01:21]} Nxc5 {[%emt 0:00:25]} 15. Nc3 {[%emt 0:00:20]} Ne7 {[%emt 0:00:15]} 16. Rfd1 {[%emt 0:01:42]} Nc8 {[%emt 0:01:04]} 17. Ne1 {[%emt 0:01:10]} Nb6 {[%emt 0:00:17]} 18. f3 {[%emt 0:01:32]} Nb3 {[%emt 0:02:32]} 19. Rc2 {[%emt 0:02:13]} Bxc4 {[%emt 0:00:35]} 20. Bxc4 {[%emt 0:00:50]} Nxc4 {[%emt 0:00:01]} 21. Rd7 {[%emt 0:00:15]} Nd4 {[%emt 0:01:07]} 22. Rf2 {[%emt 0:00:55]} Rg8 {[%emt 0:00:19]} 23. Nd3 {[%emt 0:00:39]} Ra5 $2 {[%emt 0:03:57]} (23... Kc8 $19 {is more deadly.} 24. Re7 Nd6 25. Nxe5 fxe5 26. Rxe5 Rd8) 24. f4 {[%emt 0:00:22]} Nb5 {[%emt 0:00:38]} 25. fxe5 {[%emt 0:00:37]} Nxc3 {[%emt 0:00:07]} 26. bxc3 {[%emt 0:00:07]} Nxe5 {[%emt 0:00:41]} 27. Nxe5 {[%emt 0:00:09]} Rxe5 {[%emt 0:00:06]} 28. Rb2 {[%emt 0:00:20]} b5 {[%emt 0:00:30]} 29. Rb4 {[%emt 0:00:30]} ({White should try} 29. c4 $15) 29... Rc5 {[%emt 0:00:21]} 30. Rd3 {[%emt 0:00:36]} Kc7 {[%emt 0:00:22]} 31. Rbd4 {[%emt 0:00:09]} Kb6 {[%emt 0:02:40]} 32. Kf2 {[%emt 0:00:22]} Re8 {[%emt 0:00:51]} 33. Kf3 {[%emt 0:00:06]} Re7 $19 {[%emt 0:00:40]} 34. g4 {[%emt 0:02:27]} Rce5 {[%emt 0:00:21]} 35. c4 {[%emt 0:00:22]} Rc5 {[%emt 0:06:16]} 36. cxb5 {[%emt 0:00:25]} cxb5 {[%emt 0:00:14]} 37. h4 {[%emt 0:01:52]} Rec7 {[%emt 0:00:25]} 38. Kf4 {[%emt 0:02:28]} Rc3 {[%emt 0:02:15]} 39. g5 {[%emt 0:00:23]} Rxd3 {[%emt 0:00:29]} 40. Rxd3 {[%emt 0:00:00]} Kc5 {[%emt 0:00:00]} 41. gxf6 {[%emt 0:00:55]} gxf6 {[%emt 0:02:27]} 42. Kf5 {[%emt 0:00:20]} Re7 {[%emt 0:02:21]} 43. h5 {[%emt 0:01:59]} Re5+ {[%emt 0:01:50]} 44. Kxf6 {[%emt 0:00:21]} Rxe4 {[%emt 0:01:15]} 45. Rd7 {[%emt 0:00:25]} h6 {[%emt 0:02:16]} 46. Kg7 {[%emt 0:00:56]} Re6 {[%emt 0:00:09]} 47. Rd8 {[%emt 0:01:08]} Re3 {[%emt 0:06:07]} 48. Kxh6 {[%emt 0:01:22]} Rxa3 {[%emt 0:00:09]} 49. Rc8+ {[%emt 0:00:12]} Kb4 {[%emt 0:00:37]} 50. Kh7 {[%emt 0:00:33]} Rh3 {[%emt 0:00:27]} 51. h6 {[%emt 0:00:02]} a3 {[%emt 0:00:07]} 52. Kg6 {[%emt 0:00:26]} a2 {[%emt 0:00:22]} 53. Ra8 {[%emt 0:00:08]} Kb3 {[%emt 0:00:11]} 54. Ra5 {[%emt 0:00:34]} b4 {[%emt 0:00:15]} 0-1

[Event "European Amateur-ch U2000 2019"]
[Site "Rhodes"]
[Date "2019.04.11"]
[Round "6.8"]
[White "Mohnblatt, Nicolas"]
[Black "Krzysztynska, Anna"]
[Result "0-1"]
[ECO "A24"]
[WhiteElo "1685"]
[BlackElo "1844"]
[Annotator "NA"]
[PlyCount "118"]
[EventDate "2019.04.06"]
[EventType "swiss"]
[EventCountry "GRE"]
[SourceTitle "playchess.com"]
[Source "ChessBase"]
[SourceQuality "1"]
[TimeControl "40/5400+30:1800+30"]

1. c4 {[%emt 0:00:00]} Nf6 {[%emt 0:00:00]} 2. Nc3 {[%emt 0:00:00]} g6 {[%emt 0:00:00]} 3. g3 {[%emt 0:00:14]} Bg7 {[%emt 0:00:13]} 4. Bg2 {[%emt 0:00:12]} O-O {[%emt 0:00:44]} 5. d3 {[%emt 0:05:03]} d6 {[%emt 0:01:45]} 6. Nf3 {[%emt 0:00:26]} e5 {[%emt 0:01:37]} 7. e4 {[%emt 0:00:21]} Nc6 {[%emt 0:00:25]} 8. h3 {[%emt 0:04:29]} Ne7 {[%emt 0:02:11]} 9. O-O {[%emt 0:02:04]} c6 {[%emt 0:02:37]} 10. d4 {[%emt 0:04:37]} Nd7 {[%emt 0:07:09]} 11. dxe5 {[%emt 0:06:51]} Nxe5 {[%emt 0:02:50]} 12. Nxe5 {[%emt 0:01:30]} dxe5 {[%emt 0:07:06]} 13. Qe2 {[%emt 0:00:27]} Be6 {[%emt 0:03:50]} 14. Rb1 {[%emt 0:05:17]} f5 {[%emt 0:09:52]} 15. f4 {[%emt 0:04:36]} Qd4+ {[%emt 0:05:16]} 16. Be3 {[%emt 0:06:54]} Qxc4 {[%emt 0:02:14]} 17. Qxc4 {[%emt 0:00:40]} Bxc4 {[%emt 0:00:04]} 18. Rfd1 {[%emt 0:00:09]} exf4 {[%emt 0:06:44]} 19. Bxf4 {[%emt 0:01:05]} Rad8 {[%emt 0:16:09]} 20. Bg5 {[%emt 0:06:52]} Kf7 {[%emt 0:04:39]} 21. Rxd8 {[%emt 0:02:43]} Rxd8 {[%emt 0:00:14]} 22. exf5 {[%emt 0:00:15]} gxf5 {[%emt 0:00:42]} 23. b3 {[%emt 0:05:52]} Be6 {[%emt 0:04:30]} 24. Na4 {[%emt 0:03:13]} b5 {[%emt 0:01:36]} 25. Nb2 {[%emt 0:00:31]} Bxb2 {[%emt 0:02:49]} 26. Rxb2 {[%emt 0:00:16]} Rd1+ {[%emt 0:00:47]} 27. Kf2 {[%emt 0:00:45]} Bd5 {[%emt 0:01:22]} 28. Bf1 {[%emt 0:02:28]} Nc8 {[%emt 0:02:35]} 29. Bd2 {[%emt 0:01:48]} Nd6 {[%emt 0:01:11]} 30. Bf4 {[%emt 0:05:55]} Ne4+ {[%emt 0:01:18]} 31. Ke2 {[%emt 0:00:39]} Ra1 {[%emt 0:00:21]} 32. Rc2 {[%emt 0:01:45]} Rxa2 {[%emt 0:02:25]} 33. Rxa2 {[%emt 0:04:16]} Nc3+ {[%emt 0:00:05]} 34. Kd2 {[%emt 0:00:28]} Nxa2 {[%emt 0:00:05]} 35. Kc2 {[%emt 0:00:07]} Be4+ {[%emt 0:00:29]} 36. Kd2 {[%emt 0:03:45]} Nb4 {[%emt 0:01:09]} 37. Bd6 {[%emt 0:01:00]} Nd5 {[%emt 0:00:44]} 38. b4 {[%emt 0:00:38]} Ke6 {[%emt 0:01:51]} 39. Bc5 {[%emt 0:00:25]} a6 {[%emt 0:00:13]} 40. Be2 {[%emt 0:00:00]} Nf6 {[%emt 0:00:00]} 41. Bd1 {[%emt 0:03:17]} Bg2 {[%emt 0:06:40]} 42. Bb3+ {[%emt 0:01:29]} Ke5 {[%emt 0:06:51]} 43. Ke3 {[%emt 0:00:42]} Nd5+ {[%emt 0:00:24]} 44. Bxd5 {[%emt 0:00:08]} Kxd5 {[%emt 0:00:19]} 45. h4 {[%emt 0:02:16]} a5 {[%emt 0:01:06]} 46. Kd3 {[%emt 0:00:52]} axb4 {[%emt 0:01:14]} 47. Bxb4 {[%emt 0:00:08]} c5 {[%emt 0:00:19]} 48. Bd2 {[%emt 0:00:26]} Be4+ {[%emt 0:02:10]} 49. Kc3 {[%emt 0:00:13]} b4+ {[%emt 0:00:12]} 50. Kb3 {[%emt 0:00:18]} Kd4 {[%emt 0:00:08]} 51. Bg5 {[%emt 0:01:31]} Bd5+ {[%emt 0:01:32]} 52. Kc2 {[%emt 0:00:45]} c4 {[%emt 0:00:41]} 53. Be7 {[%emt 0:00:11]} Be4+ {[%emt 0:01:39]} 54. Kc1 {[%emt 0:00:36]} Kc3 {[%emt 0:01:12]} 55. Bf6+ {[%emt 0:00:26]} Kb3 {[%emt 0:00:20]} 56. Kd2 {[%emt 0:05:28]} c3+ {[%emt 0:00:21]} 57. Kc1 {[%emt 0:00:06]} Kc4 {[%emt 0:00:25]} 58. Be7 {[%emt 0:00:53]} b3 {[%emt 0:00:18]} 59. Ba3 {[%emt 0:00:22]} b2+ {[%emt 0:00:10]} 0-1

[Event "European Amateur-ch U2000 2019"]
[Site "Rhodes"]
[Date "2019.04.11"]
[Round "6.9"]
[White "Boesch, Heinz"]
[Black "Zanfir, Iulian"]
[Result "1-0"]
[ECO "B10"]
[WhiteElo "1929"]
[BlackElo "1699"]
[Annotator "NA"]
[PlyCount "141"]
[EventDate "2019.04.06"]
[EventType "swiss"]
[EventCountry "GRE"]
[SourceTitle "playchess.com"]
[Source "ChessBase"]
[SourceQuality "1"]
[TimeControl "40/5400+30:1800+30"]

1. Nf3 {[%emt 0:00:00]} d5 {[%emt 0:00:00]} 2. d3 {[%emt 0:00:00]} Nf6 {[%emt 0:01:08]} 3. Nbd2 {[%emt 0:00:00]} c6 {[%emt 0:00:29]} 4. e4 {[%emt 0:00:17]} Bg4 {[%emt 0:02:43]} 5. h3 {[%emt 0:00:19]} Bh5 {[%emt 0:00:13]} 6. e5 {[%emt 0:03:57]} Nfd7 {[%emt 0:01:42]} 7. Be2 {[%emt 0:00:23]} e6 {[%emt 0:00:58]} 8. O-O {[%emt 0:00:47]} c5 {[%emt 0:01:08]} 9. Nh2 {[%emt 0:06:47]} Bxe2 {[%emt 0:02:59]} 10. Qxe2 {[%emt 0:00:07]} Nc6 {[%emt 0:00:33]} 11. f4 {[%emt 0:03:58]} Nd4 {[%emt 0:04:55]} 12. Qd1 {[%emt 0:04:48]} Qb6 {[%emt 0:06:14]} 13. c3 {[%emt 0:05:32]} Nf5 {[%emt 0:05:16]} 14. Ndf3 {[%emt 0:08:58]} h5 {[%emt 0:14:13]} 15. Re1 {[%emt 0:08:47]} c4+ $11 {[%emt 0:03:44]} 16. d4 {[%emt 0:00:45]} Be7 {[%emt 0:05:22]} 17. Bd2 {[%emt 0:10:49]} a5 {[%emt 0:04:08]} 18. b3 {[%emt 0:02:12]} Qc6 {[%emt 0:03:06]} 19. bxc4 {[%emt 0:04:53]} Qxc4 {[%emt 0:00:57]} 20. Qb3 {[%emt 0:09:01]} b5 {[%emt 0:01:39]} 21. Qxc4 {[%emt 0:00:32]} bxc4 {[%emt 0:00:21]} 22. Rab1 {[%emt 0:00:25]} Ba3 {[%emt 0:11:11]} 23. Rb7 {[%emt 0:02:15]} Ke7 {[%emt 0:00:49]} 24. Nf1 {[%emt 0:05:56]} g6 {[%emt 0:02:57]} 25. Kf2 {[%emt 0:03:44]} Rhb8 {[%emt 0:00:43]} 26. Reb1 {[%emt 0:00:18]} Ke8 {[%emt 0:04:36]} 27. g4 {[%emt 0:00:46]} hxg4 {[%emt 0:00:17]} 28. hxg4 {[%emt 0:00:05]} Ne7 {[%emt 0:01:31]} 29. Ne3 {[%emt 0:00:17]} Rxb7 {[%emt 0:05:53]} 30. Rxb7 {[%emt 0:00:07]} Rb8 {[%emt 0:00:08]} 31. Rxb8+ {[%emt 0:00:14]} Nxb8 {[%emt 0:00:30]} 32. Nh4 {[%emt 0:01:50]} Ng8 {[%emt 0:03:16]} 33. f5 {[%emt 0:00:34]} gxf5 {[%emt 0:01:09]} 34. gxf5 {[%emt 0:00:08]} exf5 {[%emt 0:00:45]} 35. Nxd5 {[%emt 0:00:38]} Ne7 {[%emt 0:01:45]} 36. Nb6 {[%emt 0:00:40]} Nec6 {[%emt 0:03:37]} 37. Nxf5 {[%emt 0:00:37]} Nd7 {[%emt 0:02:35]} 38. Nxc4 {[%emt 0:00:24]} Bf8 {[%emt 0:00:41]} 39. Ncd6+ {[%emt 0:02:28]} Bxd6 {[%emt 0:00:27]} 40. Nxd6+ {[%emt 0:00:00]} Ke7 {[%emt 0:00:00]} 41. Ne4 {[%emt 0:08:37]} f6 {[%emt 0:01:37]} 42. exf6+ {[%emt 0:00:10]} Ke6 {[%emt 0:01:34]} 43. Bg5 {[%emt 0:02:42]} Kf5 {[%emt 0:00:23]} 44. Ke3 {[%emt 0:00:51]} Nd8 {[%emt 0:02:55]} 45. c4 {[%emt 0:01:14]} Nf7 {[%emt 0:04:25]} 46. Bh4 {[%emt 0:00:16]} Nb6 {[%emt 0:00:32]} 47. Kd3 {[%emt 0:05:39]} Na4 {[%emt 0:01:49]} 48. Ng5 {[%emt 0:04:36]} Kxf6 {[%emt 0:03:38]} 49. Nxf7+ {[%emt 0:01:20]} Kxf7 {[%emt 0:00:05]} 50. Bd8 {[%emt 0:00:26]} Nb2+ {[%emt 0:00:30]} 51. Kc3 {[%emt 0:00:22]} Nd1+ {[%emt 0:00:36]} 52. Kc2 {[%emt 0:00:37]} Ne3+ {[%emt 0:01:02]} 53. Kd3 {[%emt 0:00:08]} Nf5 {[%emt 0:01:05]} 54. Bxa5 {[%emt 0:00:07]} Ke6 {[%emt 0:00:19]} 55. Bb4 {[%emt 0:00:57]} Kd7 {[%emt 0:00:48]} 56. Ke4 {[%emt 0:00:22]} Ng7 {[%emt 0:00:11]} 57. d5 {[%emt 0:00:17]} Ne8 {[%emt 0:00:37]} 58. c5 {[%emt 0:00:25]} Nc7 {[%emt 0:00:44]} 59. Ke5 {[%emt 0:00:15]} Na6 {[%emt 0:01:02]} 60. a3 {[%emt 0:00:06]} Nb8 {[%emt 0:00:19]} 61. Kd4 {[%emt 0:01:34]} Na6 {[%emt 0:01:13]} 62. Kc4 {[%emt 0:00:16]} Nb8 {[%emt 0:00:28]} 63. Kb5 {[%emt 0:00:07]} Kc7 {[%emt 0:01:27]} 64. Be1 {[%emt 0:00:46]} Kb7 {[%emt 0:00:16]} 65. Bg3 {[%emt 0:00:08]} Na6 {[%emt 0:02:35]} 66. c6+ {[%emt 0:00:34]} Ka8 {[%emt 0:00:56]} 67. Bf4 {[%emt 0:01:41]} Ka7 {[%emt 0:01:08]} 68. Be3+ {[%emt 0:00:18]} Ka8 {[%emt 0:00:58]} 69. Kxa6 {[%emt 0:00:07]} Kb8 {[%emt 0:00:07]} 70. d6 {[%emt 0:00:19]} Kc8 {[%emt 0:00:43]} 71. Kb6 {[%emt 0:00:15]} 1-0

[Event "European Amateur-ch U2000 2019"]
[Site "Rhodes"]
[Date "2019.04.12"]
[Round "7.1"]
[White "Mihalache, Paul-Stelian"]
[Black "Demirbas, Emre"]
[Result "0-1"]
[ECO "B91"]
[WhiteElo "1830"]
[BlackElo "1960"]
[Annotator "NA"]
[PlyCount "96"]
[EventDate "2019.04.06"]
[EventType "swiss"]
[EventCountry "GRE"]
[SourceTitle "playchess.com"]
[Source "ChessBase"]
[SourceQuality "1"]
[TimeControl "40/5400+30:1800+30"]

1. e4 {[%emt 0:00:00]} c5 {[%emt 0:00:23]} 2. Nf3 {[%emt 0:00:00]} d6 {[%emt 0:01:35]} 3. d4 {[%emt 0:00:02]} cxd4 {[%emt 0:00:03]} 4. Nxd4 {[%emt 0:00:06]} Nf6 {[%emt 0:00:08]} 5. Nc3 {[%emt 0:00:21]} a6 {[%emt 0:00:04]} 6. g3 {[%emt 0:01:17]} e5 {[%emt 0:01:35]} 7. Nde2 {[%emt 0:01:12]} b5 {[%emt 0:00:53]} 8. Bg2 {[%emt 0:01:02]} Bb7 {[%emt 0:00:04]} 9. Bg5 {[%emt 0:02:53]} Be7 {[%emt 0:01:26] B91: Sicilian Najdorf: 6 g3} (9... Nbd7 10. Nd5 Be7 11. Bxf6 Nxf6 12. Nec3 Rc8 {½-½ (12) Krejci,J (2519)-Cernousek,L (2464) Ceske Budejovice 2017}) 10. Bxf6 {[%emt 0:02:15]} Bxf6 {[%emt 0:01:16]} 11. Nd5 {[%emt 0:00:58]} Nd7 {[%emt 0:03:43]} 12. a4 $146 {[%emt 0:15:38]} ({Predecessor:} 12. Nec3 O-O 13. a4 Bxd5 14. Nxd5 bxa4 15. Rxa4 Nc5 16. Ra3 a5 {0-1 (55) Diaz Herrero,A (1906)-Rubio Mejia,L (2116) Benidorm 2006}) 12... Nb6 {[%emt 0:12:56]} 13. Nxf6+ {[%emt 0:03:41]} gxf6 {[%emt 0:01:09]} 14. axb5 {[%emt 0:05:03]} axb5 {[%emt 0:00:01]} 15. Rxa8 {[%emt 0:00:25]} Bxa8 {[%emt 0:00:13]} 16. Qd3 {[%emt 0:04:39]} Qd7 {[%emt 0:02:10]} 17. O-O {[%emt 0:01:13]} Ke7 {[%emt 0:04:10]} (17... Na4 $142) 18. f4 {[%emt 0:03:35]} Rd8 {[%emt 0:08:20]} 19. fxe5 {[%emt 0:08:35]} dxe5 {[%emt 0:01:14]} 20. Qf3 $11 {[%emt 0:01:15]} Qd6 {[%emt 0:03:04]} 21. Nc3 {[%emt 0:03:02]} b4 {[%emt 0:05:30]} 22. Nd1 {[%emt 0:20:27]} Nc4 {[%emt 0:02:15]} 23. Re1 {[%emt 0:03:14]} Nd2 {[%emt 0:05:28]} 24. Qg4 {[%emt 0:03:48]} Qd4+ {[%emt 0:03:03]} 25. Kh1 {[%emt 0:00:12]} Nxe4 {[%emt 0:01:22]} 26. Qe2 {[%emt 0:04:30]} Qxd1 {[%emt 0:05:36]} 27. Rxd1 {[%emt 0:00:06]} Rxd1+ {[%emt 0:00:04]} 28. Qxd1 {[%emt 0:01:06]} Nf2+ {[%emt 0:00:02]} 29. Kg1 {[%emt 0:00:15]} Nxd1 {[%emt 0:00:03]} 30. Bxa8 {[%emt 0:00:09]} Nxb2 {[%emt 0:00:02]} 31. Kf2 {[%emt 0:00:44]} f5 {[%emt 0:00:55]} 32. Bc6 {[%emt 0:01:48]} Kd6 {[%emt 0:01:07]} 33. Bb5 {[%emt 0:00:01]} Nd1+ {[%emt 0:00:05]} 34. Ke1 {[%emt 0:01:12]} Ne3 {[%emt 0:01:16]} 35. Kd2 {[%emt 0:00:54]} Kc5 {[%emt 0:00:35]} 36. Bd3 {[%emt 0:03:53]} Kd4 {[%emt 0:00:07]} 37. Bb5 {[%emt 0:02:04]} Nc4+ {[%emt 0:00:32]} 38. Kc1 {[%emt 0:01:26]} e4 {[%emt 0:00:33]} 39. Kd1 {[%emt 0:01:13]} Nd6 {[%emt 0:00:40]} 40. Bd7 {[%emt 0:00:00]} Ke3 {[%emt 0:00:00]} 41. Ke1 {[%emt 0:04:05]} f4 {[%emt 0:00:33]} 42. gxf4 {[%emt 0:00:12]} f5 {[%emt 0:00:02]} 43. Be6 {[%emt 0:01:18]} Kxf4 {[%emt 0:00:04]} 44. Kf2 {[%emt 0:01:31]} Ke5 {[%emt 0:00:22]} 45. Bg8 {[%emt 0:00:42]} h6 {[%emt 0:00:01]} 46. Ke2 {[%emt 0:00:58]} f4 {[%emt 0:00:04]} 47. h3 {[%emt 0:01:17]} Nf5 {[%emt 0:00:03]} 48. Kf2 {[%emt 0:02:17]} Nd4 {[%emt 0:00:06]} 0-1

[Event "European Amateur-ch U2000 2019"]
[Site "Rhodes"]
[Date "2019.04.12"]
[Round "7.2"]
[White "Ruzic, Pia Marie"]
[Black "Suliborski, Artur"]
[Result "1-0"]
[ECO "A34"]
[WhiteElo "1800"]
[BlackElo "1926"]
[Annotator "NA"]
[PlyCount "89"]
[EventDate "2019.04.06"]
[EventType "swiss"]
[EventCountry "GRE"]
[SourceTitle "playchess.com"]
[Source "ChessBase"]
[SourceQuality "1"]
[TimeControl "40/5400+30:1800+30"]

1. Nf3 {[%emt 0:00:00]} c5 {[%emt 0:00:00]} 2. c4 {[%emt 0:00:00]} Nf6 {[%emt 0:00:00]} 3. Nc3 {[%emt 0:00:00]} Nc6 {[%emt 0:00:00]} 4. g3 {[%emt 0:00:03]} d5 {[%emt 0:00:01]} 5. cxd5 {[%emt 0:00:07]} Nxd5 {[%emt 0:00:01]} 6. Bg2 {[%emt 0:00:28]} Nc7 {[%emt 0:00:06]} 7. O-O {[%emt 0:01:43]} e5 {[%emt 0:00:04]} 8. d3 {[%emt 0:01:57]} Be7 {[%emt 0:00:14]} 9. b3 {[%emt 0:02:10]} O-O {[%emt 0:01:35]} 10. Bb2 {[%emt 0:00:58]} Rb8 {[%emt 0:05:29] A34: Symmetrical English: 2 Nc3, lines with ...d5} (10... Be6 11. Rc1 f6 12. e3 Qd7 13. Qe2 Rfd8 14. Rfd1 Rac8 15. Ne4 Na6 16. Rd2 Kh8 17. Rcd1 Bg4 18. Qf1 f5 19. Nc3 Bf6 {0-1 (36) Iturrizaga Bonelli,E (2636)-Vidit,S (2711) chess.com INT 2018}) 11. Rc1 {[%emt 0:01:04]} f6 {[%emt 0:01:20]} 12. a3 $146 {[%emt 0:04:05]} ({Predecessor:} 12. Ne4 b6 13. a3 Bb7 14. Qc2 Nd5 15. e3 Kh8 16. Rfd1 {1-0 (31) Zavarce,O (2378)-Mc Intosh,I (2145) Port of Spain 2017}) 12... Qe8 {[%emt 0:21:34]} 13. Ne4 {[%emt 0:13:14]} Ne6 {[%emt 0:02:10]} 14. Nfd2 {[%emt 0:01:07]} Qh5 {[%emt 0:04:14]} 15. e3 {[%emt 0:06:25]} Qxd1 {[%emt 0:07:30]} 16. Rfxd1 {[%emt 0:00:04]} Rd8 {[%emt 0:00:09]} 17. Bf1 {[%emt 0:01:23]} Bd7 {[%emt 0:02:27]} 18. Nc4 {[%emt 0:09:36]} Be8 {[%emt 0:00:26]} 19. Bc3 {[%emt 0:01:29]} Bf7 {[%emt 0:07:44]} 20. Na5 {[%emt 0:01:31]} Rd7 {[%emt 0:10:10]} 21. Be2 $15 {[%emt 0:04:39]} g6 {[%emt 0:02:48]} 22. Nxc6 {[%emt 0:04:38]} bxc6 {[%emt 0:00:02]} 23. b4 {[%emt 0:00:05]} cxb4 {[%emt 0:07:37]} 24. Bxb4 {[%emt 0:00:06]} f5 {[%emt 0:00:26]} 25. Bxe7 {[%emt 0:00:51]} fxe4 {[%emt 0:00:36]} 26. Bb4 {[%emt 0:00:17]} exd3 {[%emt 0:02:16]} 27. Rxd3 {[%emt 0:00:07]} Rxd3 {[%emt 0:00:52]} 28. Bxd3 {[%emt 0:00:11]} c5 {[%emt 0:00:22]} 29. Bc3 {[%emt 0:00:36]} Rb3 {[%emt 0:00:02]} 30. a4 {[%emt 0:00:16]} Ng5 {[%emt 0:01:34]} 31. h4 {[%emt 0:03:24]} c4 {[%emt 0:08:37]} 32. Bb1 {[%emt 0:13:12]} Ne6 {[%emt 0:10:05]} 33. Ba2 {[%emt 0:00:13]} Ra3 {[%emt 0:00:17]} 34. Bxc4 {[%emt 0:00:06]} Rxa4 {[%emt 0:00:08]} 35. Bxe5 {[%emt 0:00:07]} Ra5 {[%emt 0:01:21]} 36. Bd6 {[%emt 0:04:18]} Kg7 {[%emt 0:02:31]} 37. Bb4 {[%emt 0:03:46]} Ra4 {[%emt 0:00:10]} 38. Bc3+ {[%emt 0:00:36]} Kh6 {[%emt 0:01:43]} 39. Bf6 {[%emt 0:02:34]} a5 {[%emt 0:01:29]} 40. g4 {[%emt 0:00:00]} Rb4 {[%emt 0:00:00]} 41. g5+ {[%emt 0:05:10]} Kh5 {[%emt 0:01:21]} 42. Be2+ {[%emt 0:00:25]} Kxh4 {[%emt 0:03:22]} 43. Kg2 {[%emt 0:00:06]} Nf4+ {[%emt 0:00:13]} 44. exf4 {[%emt 0:00:05]} Bd5+ {[%emt 0:00:09]} 45. f3 {[%emt 0:00:48]} 1-0

[Event "European Amateur-ch U2000 2019"]
[Site "Rhodes"]
[Date "2019.04.12"]
[Round "7.3"]
[White "Kostov, Deyan Samuil"]
[Black "Jamba, Alexandru"]
[Result "1-0"]
[ECO "B22"]
[WhiteElo "1830"]
[BlackElo "1852"]
[Annotator "NA"]
[PlyCount "80"]
[EventDate "2019.04.06"]
[EventType "swiss"]
[EventCountry "GRE"]
[SourceTitle "playchess.com"]
[Source "ChessBase"]
[SourceQuality "1"]
[TimeControl "40/5400+30:1800+30"]

1. e4 {[%emt 0:00:00]} c5 {[%emt 0:00:00]} 2. Nf3 {[%emt 0:00:00]} Nc6 {[%emt 0:00:03]} 3. c3 {[%emt 0:00:00]} d5 {[%emt 0:00:09]} 4. exd5 {[%emt 0:00:03]} Qxd5 {[%emt 0:00:04]} 5. d4 {[%emt 0:00:22]} e5 {[%emt 0:02:23]} 6. Nxe5 {[%emt 0:11:19] B22: Sicilian: 2 c3} Nxe5 {[%emt 0:00:07]} 7. dxe5 {[%emt 0:00:03] LiveBook: 84 Games} Qxd1+ {[%emt 0:05:50]} (7... Qxe5+ 8. Be3 Nf6 9. Bb5+ Bd7 10. Bxd7+ Nxd7 11. Nd2 O-O-O 12. O-O Bd6 13. Nf3 Qe7 14. Re1 Ne5 15. Bf4 Nxf3+ 16. Qxf3 {0-1 (36) Ye,J (2632)-Zhang,P (2657) China 2007}) 8. Kxd1 {[%emt 0:00:06]} Bg4+ {[%emt 0:00:18]} 9. f3 {[%emt 0:01:07]} O-O-O+ {[%emt 0:00:09]} 10. Ke1 {[%emt 0:00:39]} Be6 {[%emt 0:02:24]} 11. Be3 {[%emt 0:05:20]} f6 {[%emt 0:01:23]} 12. Nd2 {[%emt 0:03:31]} fxe5 {[%emt 0:02:44]} 13. Ne4 {[%emt 0:02:17]} b6 $146 {[%emt 0:10:11]} ({Predecessor:} 13... Nf6 14. Nxc5 Bxc5 15. Bxc5 {1-0 (21) Macek,K (1930)-Lacina,F Usti nad Orlici 2006}) 14. Ng5 {[%emt 0:02:34]} Bd5 {[%emt 0:00:30]} 15. c4 {[%emt 0:14:05]} h6 $1 {[%emt 0:00:09]} 16. cxd5 {[%emt 0:02:55]} hxg5 {[%emt 0:00:05]} 17. Bxg5 {[%emt 0:03:00]} Rxd5 {[%emt 0:00:18]} 18. Bc4 {[%emt 0:01:14]} Rd4 {[%emt 0:03:38]} 19. Bxg8 {[%emt 0:09:23]} Rxg8 {[%emt 0:00:10]} 20. Be3 {[%emt 0:00:50]} Rb4 {[%emt 0:04:24]} 21. b3 {[%emt 0:04:41]} Be7 $11 {[%emt 0:04:48]} 22. Ke2 {[%emt 0:06:30]} e4 {[%emt 0:05:39]} 23. f4 {[%emt 0:03:34]} Bf6 {[%emt 0:00:34]} 24. Rac1 {[%emt 0:01:47]} Rd8 {[%emt 0:07:29]} 25. Rhd1 {[%emt 0:01:25]} Rxd1 {[%emt 0:03:00]} 26. Kxd1 {[%emt 0:00:14]} Kd7 {[%emt 0:06:11]} 27. Ke2 {[%emt 0:02:05]} Kc6 {[%emt 0:07:19]} 28. g4 {[%emt 0:01:39]} a5 {[%emt 0:00:31]} 29. g5 {[%emt 0:02:28]} Bd4 {[%emt 0:00:14]} 30. Bd2 {[%emt 0:00:21]} Rb5 {[%emt 0:01:11]} 31. Rc4 {[%emt 0:01:56]} Kd5 {[%emt 0:01:24]} 32. h4 {[%emt 0:02:52]} g6 {[%emt 0:01:39]} 33. f5 {[%emt 0:12:16]} gxf5 {[%emt 0:00:17]} 34. g6 {[%emt 0:00:31]} Ke6 {[%emt 0:02:41]} 35. h5 {[%emt 0:01:00]} Kf6 {[%emt 0:08:22]} 36. Bc3 {[%emt 0:01:01]} f4 {[%emt 0:16:22]} 37. Rxd4 {[%emt 0:02:35]} cxd4 {[%emt 0:00:05]} 38. Bxd4+ {[%emt 0:00:04]} Ke7 {[%emt 0:00:07]} 39. h6 {[%emt 0:00:07]} Rh5 {[%emt 0:02:21]} 40. h7 {[%emt 0:00:00]} e3 {Kxe3} 1-0